bitfinex/quotes_SOLUSD_20251025
["timestamp","ask_amount","ask_price","bid_price","bid_amount"]
[1761377096216,1.62078249,194.81,194.8,36.28]
[1761377098517,1.62078249,194.81,194.77,0.68]
[1761377098723,1.62078249,194.8,194.78,35.56]
[1761377099338,1.62078249,194.8,194.79,0.68]
[1761377100333,1.62078249,194.8,194.78,35.56]
[1761377100634,1.62078249,194.79,194.78,35.56]
[1761377100820,1.96078249,194.79,194.76,22.88]
[1761377101133,5.47321713,194.81,194.78,35.56]
[1761377101312,1.62078249,194.79,194.78,35.56]
[1761377101912,1.96078249,194.79,194.71,0.5135843]
[1761377102127,0.34,194.78,194.72,35.58]
[1761377102331,1.62078249,194.73,194.72,35.58]
[1761377102644,5.4742307,194.78,194.72,36.26]
[1761377102826,1.62078249,194.73,194.72,35.58]
[1761377104143,1.62078249,194.73,194.72,36.26]
[1761377104817,5.13427552,194.77,194.72,36.26]
[1761377105016,1.62078249,194.74,194.73,0.68]
[1761377105951,1.62078249,194.74,194.73,35.58]
[1761377106337,1.62078249,194.74,194.73,36.26]
[1761377106844,1.62078249,194.75,194.73,36.26]
[1761377107042,1.62078249,194.76,194.74,0.68]
[1761377107523,1.62078249,194.75,194.74,0.68]
[1761377108949,2.53299504,194.75,194.74,0.68]
[1761377112548,2.53299504,194.75,194.73,35.58]
[1761377112932,2.53299504,194.75,194.73,36.26]
[1761377113334,2.53299504,194.75,194.73,35.58]
[1761377113533,5.13400059,194.78,194.74,0.68]
[1761377113744,2.53299504,194.75,194.74,0.68]
[1761377118669,5.47400059,194.78,194.74,0.68]
[1761377118835,2.53299504,194.75,194.74,0.68]
[1761377124153,2.87299504,194.75,194.71,22.88]
[1761377124367,5.13461501,194.76,194.72,35.54]
[1761377124368,2.53299504,194.73,194.72,35.54]
[1761377124736,2.53299504,194.74,194.72,36.23]
[1761377126363,2.53299504,194.73,194.72,36.23]
[1761377126555,2.53299504,194.73,194.72,35.54]
[1761377127561,0.34,194.75,194.72,35.54]
[1761377127777,2.53299504,194.73,194.72,35.54]
[1761377128453,5.47527004,194.74,194.72,35.54]
[1761377128657,2.53299504,194.73,194.72,35.54]
[1761377129972,2.87299504,194.73,194.72,35.54]
[1761377130170,2.53299504,194.73,194.72,35.54]
[1761377132096,2.53299504,194.73,194.69,0.69]
[1761377132287,2.53299504,194.71,194.7,35.54]
[1761377132690,2.53299504,194.71,194.7,36.23]
[1761377133294,2.53299504,194.71,194.7,35.54]
[1761377134493,2.87299504,194.71,194.7,35.54]
[1761377134793,7.66885289,194.71,194.7,35.54]
[1761377135672,8.00885289,194.71,194.7,35.54]
[1761377138997,7.66885289,194.71,194.7,35.54]
[1761377156703,7.66885289,194.71,194.7,36.25]
[1761377160217,7.66885289,194.71,194.7,35.54]
[1761377160416,7.66885289,194.71,194.7,36.26]
[1761377161011,5.1353867,194.72,194.7,35.54]
[1761377161197,2.53299504,194.73,194.71,0.72]
[1761377161400,2.53299504,194.72,194.71,0.72]
[1761377161703,2.53299504,194.72,194.7,35.54]
[1761377161910,2.53299504,194.71,194.7,36.26]
[1761377164391,7.66883808,194.71,194.7,36.26]
[1761377165824,5.13557929,194.72,194.7,36.26]
[1761377166018,2.53299504,194.71,194.7,36.26]
[1761377167028,7.66883808,194.71,194.7,36.26]
[1761377168915,5.13537148,194.73,194.7,36.26]
[1761377169122,2.53299504,194.73,194.71,0.72]
[1761377169325,2.53299504,194.72,194.71,0.72]
[1761377170925,1.62172206,194.72,194.71,0.72]
[1761377171933,6.75703762,194.73,194.71,0.72]
[1761377172120,1.62172206,194.73,194.71,0.72]
[1761377176724,5.13518621,194.74,194.71,0.72]
[1761377176932,1.62172206,194.73,194.71,0.72]
[1761377177334,6.75690827,194.74,194.71,0.72]
[1761377180039,1.62172206,194.73,194.71,0.72]
[1761377180539,6.75706402,194.73,194.71,0.72]
[1761377180731,1.62172206,194.72,194.7,36.19]
[1761377180929,1.62172206,194.71,194.7,36.19]
[1761377181241,1.62172206,194.71,194.7,35.54]
[1761377181439,5.13534196,194.73,194.7,35.54]
[1761377181741,1.62172206,194.71,194.7,35.54]
[1761377182435,1.62172206,194.71,194.7,36.19]
[1761377184644,1.62172206,194.71,194.7,0.65]
[1761377184848,1.62172206,194.71,194.7,36.19]
[1761377185544,6.7575651,194.71,194.7,36.19]
[1761377185741,6.7575651,194.71,194.7,35.54]
[1761377186427,5.13584304,194.71,194.7,35.54]
[1761377186629,6.7575651,194.71,194.7,35.54]
[1761377187142,30.81364793,194.71,194.65,0.65]
[1761377187441,1.62172206,194.66,194.65,0.65]
[1761377187632,1.62172206,194.66,194.65,36.19]
[1761377190354,7.09888429,194.66,194.65,35.54]
[1761377190856,6.75888429,194.66,194.65,35.54]
[1761377194759,5.13689834,194.67,194.65,35.54]
[1761377196038,17.97822066,194.68,194.65,35.54]
[1761377197061,18.31822066,194.68,194.65,35.54]
[1761377197360,5.13663447,194.68,194.66,0.65]
[1761377197544,1.62172206,194.67,194.66,0.65]
[1761377197875,5.13663447,194.68,194.66,0.65]
[1761377197876,6.75835653,194.68,194.66,0.65]
[1761377198039,1.62172206,194.67,194.66,0.65]
[1761377198948,6.7586204,194.67,194.66,0.65]
[1761377199336,107.33663414,194.69,194.66,0.65]
[1761377199540,103.82172206,194.69,194.66,0.65]
[1761377199758,102.2,194.69,194.66,0.65]
[1761377199953,103.82172206,194.69,194.66,0.65]
[1761377200761,102.2,194.69,194.66,0.65]
[1761377200942,103.82172206,194.69,194.66,0.65]
[1761377201137,108.95813486,194.69,194.66,0.65]
[1761377202343,107.3364128,194.69,194.66,0.65]
[1761377202546,102.2,194.69,194.66,0.65]
[1761377202763,6.75786301,194.7,194.66,0.65]
[1761377203539,1.62172206,194.69,194.66,0.65]
[1761377203747,1.62172206,194.67,194.66,0.65]
[1761377203954,17.97462184,194.72,194.66,36.19]
[1761377204163,1.62172206,194.69,194.67,0.65]
[1761377205070,6.75799281,194.7,194.67,0.65]
[1761377205379,1.62172206,194.69,194.67,0.65]
[1761377207666,1.62172206,194.68,194.67,0.65]
[1761377210883,13.17904255,194.72,194.67,0.65]
[1761377211180,1.62172206,194.68,194.67,0.71]
[1761377212078,1.62172206,194.69,194.67,0.71]
[1761377215589,6.75816159,194.69,194.67,0.71]
[1761377219983,1.62172206,194.68,194.67,0.71]
[1761377220290,1.62172206,194.68,194.67,36.25]
[1761377220493,102.2,194.73,194.67,36.25]
[1761377220791,1.62172206,194.71,194.68,0.72]
[1761377221275,107.33535213,194.73,194.68,0.72]
[1761377221595,1.62172206,194.7,194.68,0.72]
[1761377222875,1.62172206,194.71,194.68,0.72]
[1761377223986,6.75730626,194.72,194.68,0.72]
[1761377224393,1.62172206,194.71,194.68,0.72]
[1761377228284,6.75730626,194.72,194.68,0.72]
[1761377228488,5.1355842,194.72,194.68,0.72]
[1761377228902,6.75730626,194.72,194.68,0.72]
[1761377229284,1.62172206,194.71,194.68,0.72]
[1761377229602,5.1355842,194.72,194.68,0.72]
[1761377229798,1.62172206,194.71,194.68,0.72]
[1761377231394,1.62172206,194.7,194.68,0.72]
[1761377232701,2.53422187,194.7,194.68,0.72]
[1761377235700,7.67044292,194.7,194.68,0.72]
[1761377238207,7.67044292,194.7,194.69,35.54]
[1761377241398,7.67044292,194.7,194.69,36.21]
[1761377246002,2.53422187,194.7,194.69,36.21]
[1761377246708,5.13557929,194.72,194.69,36.21]
[1761377246911,2.53422187,194.7,194.69,36.21]
[1761377248521,7.6703287,194.7,194.69,36.21]
[1761377252316,7.6703287,194.7,194.68,35.54]
[1761377252506,2.53422187,194.69,194.68,36.21]
[1761377257019,5.13557929,194.72,194.68,36.21]
[1761377257226,2.53422187,194.7,194.69,0.67]
[1761377257414,2.53422187,194.71,194.69,0.67]
[1761377258114,7.67031226,194.71,194.69,0.67]
[1761377259015,2.53422187,194.7,194.69,0.67]
[1761377260531,7.6703287,194.7,194.69,0.67]
[1761377261211,7.6703287,194.7,194.68,35.54]
[1761377261510,2.53422187,194.69,194.68,36.21]
[1761377261711,2.53422187,194.69,194.68,35.54]
[1761377262230,2.53422187,194.69,194.68,36.21]
[1761377264436,2.53422187,194.7,194.68,36.21]
[1761377265636,7.67055986,194.7,194.68,36.21]
[1761377265928,7.67055986,194.7,194.68,35.54]
[1761377266134,7.67055986,194.7,194.69,0.67]
[1761377268734,5.13633799,194.7,194.69,0.67]
[1761377272232,5.13557929,194.72,194.69,0.67]
[1761377272620,7.66980116,194.72,194.69,0.67]
[1761377275335,107.33533356,194.73,194.69,0.67]
[1761377275543,109.86955543,194.73,194.69,0.67]
[1761377277540,5.13584304,194.71,194.69,0.67]
[1761377278545,109.86978099,194.73,194.69,0.67]
[1761377279242,5.13491617,194.75,194.69,3.20422187]
[1761377279434,7.66913804,194.75,194.7,0.69]
[1761377279639,7.66913804,194.75,194.7,16.11218223]
[1761377279945,2.53422187,194.74,194.7,16.11218223]
[1761377280125,2.53422187,194.74,194.71,0.69]
[1761377280326,2.53422187,194.74,194.72,35.52]
[1761377280833,2.53422187,194.74,194.73,0.69]
[1761377281035,7.66927373,194.74,194.73,0.69]
[1761377284942,7.66927373,194.74,194.72,35.52]
[1761377285148,2.53422187,194.73,194.72,36.21]
[1761377285642,2.53422187,194.73,194.72,35.52]
[1761377286044,2.53422187,194.73,194.72,36.21]
[1761377286243,7.66953743,194.73,194.72,36.21]
[1761377288959,7.66953743,194.73,194.72,35.52]
[1761377289331,7.66953743,194.73,194.72,36.21]
[1761377290038,7.66953743,194.73,194.72,35.52]
[1761377290543,7.66953743,194.73,194.72,36.21]
[1761377291839,5.13505186,194.74,194.72,36.21]
[1761377292056,2.53422187,194.73,194.72,35.52]
[1761377292261,2.53422187,194.73,194.72,36.21]
[1761377292760,1.62145083,194.73,194.72,36.21]
[1761377292966,6.75676639,194.73,194.72,36.21]
[1761377294650,5.13531556,194.73,194.72,36.21]
[1761377294852,6.75676639,194.73,194.72,36.21]
[1761377299244,5.13531556,194.73,194.72,36.21]
[1761377299444,6.75676639,194.73,194.72,36.21]
[1761377302260,1.62145083,194.73,194.72,36.21]
[1761377302772,1.62145083,194.73,194.7,0.66]
[1761377303067,1.62145083,194.71,194.7,0.66]
[1761377303272,1.62145083,194.71,194.7,36.18]
[1761377303770,15.42376802,194.73,194.7,36.18]
[1761377303957,1.62145083,194.71,194.7,35.52]
[1761377304556,1.62145083,194.71,194.7,36.18]
[1761377306772,6.75729387,194.71,194.7,36.18]
[1761377313570,6.75729387,194.71,194.7,35.52]
[1761377313775,22.18106189,194.71,194.7,35.52]
[1761377314173,22.52106189,194.71,194.7,35.52]
[1761377317187,35.36066951,194.71,194.65,0.66]
[1761377317377,1.62145083,194.67,194.66,35.52]
[1761377317974,1.96145083,194.67,194.65,35.52]
[1761377318174,1.62145083,194.66,194.65,35.52]
[1761377318786,1.96145083,194.66,194.65,35.52]
[1761377318979,22.52555364,194.66,194.65,35.52]
[1761377319178,22.18555364,194.66,194.65,35.52]
[1761377319969,22.52555364,194.66,194.65,35.52]
[1761377320375,22.52555364,194.66,194.62,36.18]
[1761377320574,1.62145083,194.63,194.62,36.18]
[1761377321770,5.13784015,194.64,194.62,36.18]
[1761377321971,5.13784015,194.64,194.63,0.66]
[1761377322887,15.43011444,194.65,194.58,29.84064923]
[1761377323088,5.13716223,194.66,194.62,0.66]
[1761377323282,5.13716223,194.66,194.63,35.52]
[1761377323482,15.43011444,194.65,194.63,35.52]
[1761377323684,15.43011444,194.65,194.62,0.66]
[1761377323890,15.43011444,194.65,194.63,35.52]
[1761377324386,6.75914092,194.64,194.63,35.52]
[1761377324693,6.75914092,194.64,194.63,36.18]
[1761377326800,6.75914092,194.64,194.63,35.52]
[1761377327900,6.75914092,194.64,194.63,36.18]
[1761377331076,20.56759438,194.65,194.63,36.18]
[1761377331276,20.56759438,194.65,194.64,0.67]
[1761377331473,6.75893077,194.65,194.64,0.67]
[1761377332278,5.13747994,194.65,194.64,0.67]
[1761377332484,6.75893077,194.65,194.64,0.67]
[1761377334808,5.13747994,194.65,194.64,0.67]
[1761377334982,6.75893077,194.65,194.64,0.67]
[1761377335593,7.09893077,194.65,194.59,15.42852734]
[1761377335800,17.98104531,194.65,194.6,0.67]
[1761377335997,17.98104531,194.65,194.6,36.19]
[1761377336320,1.62145083,194.61,194.6,36.19]
[1761377336483,1.62145083,194.61,194.6,35.52]
[1761377336979,6.75993292,194.61,194.6,36.19]
[1761377337183,1.62145083,194.61,194.6,36.19]
[1761377340691,1.62145083,194.62,194.6,36.19]
[1761377340888,6.75929161,194.64,194.61,0.66]
[1761377342079,1.62145083,194.63,194.61,0.66]
[1761377342506,1.62145083,194.62,194.61,0.66]
[1761377343203,7.09966889,194.62,194.6,35.52]
[1761377343418,3.58290166,194.61,194.58,0.2]
[1761377343584,11.21647521,194.61,194.58,0.2]
[1761377343790,1.62145083,194.59,194.58,0.2]
[1761377344719,6.76046105,194.59,194.58,0.2]
[1761377345092,1.62145083,194.59,194.58,0.2]
[1761377346900,6.76046105,194.59,194.58,0.2]
[1761377350213,5.13901022,194.59,194.58,0.2]
[1761377350422,1.62145083,194.59,194.58,0.2]
[1761377351423,6.76046105,194.59,194.58,0.2]
[1761377352610,5.13901022,194.59,194.58,0.86]
[1761377353220,6.76046105,194.59,194.58,0.86]
[1761377353407,5.13901022,194.59,194.58,0.86]
[1761377354738,2.5366503,194.6,194.58,0.86]
[1761377357729,5.13901022,194.59,194.58,0.86]
[1761377359129,5.13901022,194.59,194.58,0.2]
[1761377359317,2.5366503,194.59,194.58,0.2]
[1761377360428,7.67566052,194.59,194.58,0.2]
[1761377362542,2.5366503,194.59,194.58,0.87]
[1761377365138,7.67566052,194.59,194.58,0.87]
[1761377367911,17.98468732,194.61,194.58,0.87]
[1761377368115,2.5366503,194.59,194.58,0.87]
[1761377369430,5.13901022,194.59,194.58,0.87]
[1761377374636,2.5366503,194.6,194.58,0.87]
[1761377374848,2.5366503,194.6,194.58,0.2]
[1761377375012,125.92112203,194.64,194.59,0.67]
[1761377375013,5.13795406,194.63,194.59,0.67]
[1761377375213,7.67460436,194.63,194.59,0.67]
[1761377375839,5.13795406,194.63,194.59,0.67]
[1761377376219,7.67460436,194.63,194.59,0.67]
[1761377376635,5.13795406,194.63,194.59,0.67]
[1761377376940,7.67460436,194.63,194.59,0.67]
[1761377380836,2.5366503,194.62,194.59,0.67]
[1761377381551,7.67502212,194.62,194.59,0.67]
[1761377384251,115.04464682,194.64,194.59,0.67]
[1761377384252,7.67460962,194.63,194.59,0.67]
[1761377384759,5.13795932,194.63,194.59,0.67]
[1761377384958,7.67460962,194.63,194.59,0.67]
[1761377389228,26.30658965,194.67,194.62,2.5366503]
[1761377389229,10.87647521,194.67,194.62,2.5366503]
[1761377389437,2.5366503,194.68,194.63,35.72]
[1761377389635,2.5366503,194.68,194.63,36.39]
[1761377389840,2.5366503,194.68,194.64,0.71]
[1761377390749,17.97547487,194.71,194.64,0.71]
[1761377390750,0.34,194.71,194.64,0.71]
[1761377390953,2.5366503,194.69,194.64,0.71]
[1761377391144,2.5366503,194.68,194.64,0.71]
[1761377392636,18.31547057,194.71,194.64,0.71]
[1761377392946,7.67338771,194.68,194.64,0.71]
[1761377394132,12.83960762,194.71,194.64,3.2466503]
[1761377394334,2.5366503,194.7,194.65,2.5366503]
[1761377394547,2.5366503,194.7,194.65,3.2466503]
[1761377394753,12.83960762,194.71,194.66,0.71]
[1761377394754,2.5366503,194.69,194.66,0.71]
[1761377394952,2.5366503,194.69,194.67,35.7]
[1761377395257,5.13663447,194.68,194.67,35.7]
[1761377395432,5.13663447,194.68,194.67,36.41]
[1761377396956,2.5366503,194.68,194.67,35.7]
[1761377399060,7.67328477,194.68,194.67,35.7]
[1761377401531,31.73134617,194.68,194.62,22.88]
[1761377401735,31.73134617,194.68,194.63,35.68]
[1761377401736,2.5366503,194.64,194.63,35.68]
[1761377401962,0.34,194.67,194.63,35.68]
[1761377402157,2.5366503,194.64,194.63,35.68]
[1761377403467,7.67434039,194.64,194.63,35.68]
[1761377406560,5.13769009,194.64,194.63,35.68]
[1761377406867,2.5366503,194.64,194.63,36.35]
[1761377407952,5.13769009,194.64,194.63,36.35]
[1761377409158,12.84323403,194.66,194.63,36.35]
[1761377409357,49.99774157,215.7,194.64,0.67]
[1761377409358,5.47557929,194.72,194.64,0.67]
[1761377409557,2.5366503,194.69,194.64,0.67]
[1761377409754,2.5366503,194.68,194.64,0.67]
[1761377410752,5.13661501,194.69,194.64,3.2066503]
[1761377411138,5.13661501,194.69,194.65,0.67]
[1761377411449,7.67326531,194.69,194.65,0.67]
[1761377414954,2.5366503,194.68,194.65,0.67]
[1761377415149,2.5366503,194.66,194.62,22.88]
[1761377415351,2.5366503,194.64,194.63,35.68]
[1761377415547,0.34,194.67,194.63,35.68]
[1761377415768,2.5366503,194.64,194.63,35.68]
[1761377416752,6.76052081,194.64,194.63,35.68]
[1761377417264,6.76052081,194.64,194.61,0.67]
[1761377417471,1.62283072,194.63,194.61,0.67]
[1761377417762,1.62283072,194.63,194.62,35.68]
[1761377419158,6.76078478,194.63,194.62,35.68]
[1761377422386,17.98105817,194.65,194.62,35.68]
[1761377422680,1.62283072,194.63,194.62,35.68]
[1761377423693,6.76078478,194.63,194.62,35.68]
[1761377425989,6.76078478,194.63,194.62,36.35]
[1761377427374,6.76078478,194.63,194.62,35.68]
[1761377427765,6.76078478,194.63,194.58,0.2]
[1761377427766,19.94566994,194.63,194.58,0.2]
[1761377427969,1.62283072,194.59,194.58,0.87]
[1761377428254,1.62283072,194.6,194.58,36.53]
[1761377428872,1.62283072,194.6,194.59,0.67]
[1761377430775,6.76160253,194.6,194.58,36.53]
[1761377431472,1.62283072,194.59,194.58,36.53]
[1761377432386,6.76160253,194.6,194.58,36.53]
[1761377432571,1.62283072,194.6,194.58,36.53]
[1761377433883,6.76158942,194.6,194.58,36.53]
[1761377436465,6.76158942,194.6,194.59,0.67]
[1761377437990,6.76158942,194.6,194.58,36.53]
[1761377438385,6.76158942,194.6,194.58,35.86]
[1761377438583,6.76158942,194.6,194.59,0.67]
[1761377439673,1.62283072,194.6,194.59,0.67]
[1761377439878,1.62283072,194.62,194.59,0.67]
[1761377440690,1.62283072,194.61,194.59,0.67]
[1761377441065,6.76131967,194.61,194.59,0.67]
[1761377441873,5.13848895,194.61,194.59,0.67]
[1761377442072,6.76131967,194.61,194.59,0.67]
[1761377442573,1.62283072,194.62,194.59,0.67]
[1761377443590,6.76137805,194.61,194.59,0.67]
[1761377450183,1.62283072,194.6,194.59,0.67]
[1761377450384,1.62283072,194.6,194.58,36.52]
[1761377450785,6.76178783,194.6,194.58,36.52]
[1761377452494,6.76178783,194.6,194.59,0.66]
[1761377453989,5.13895711,194.6,194.59,0.66]
[1761377455979,1.62283072,194.6,194.59,0.66]
[1761377456995,6.76157686,194.6,194.59,0.66]
[1761377459996,5.13874614,194.6,194.59,0.66]
[1761377460613,5.13874614,194.6,194.58,35.86]
[1761377460807,6.76157686,194.6,194.58,36.57]
[1761377461103,6.76157686,194.6,194.59,0.71]
[1761377461302,6.76157686,194.6,194.58,35.86]
[1761377461510,1.96283072,194.59,194.58,0.2]
[1761377461716,1.96283072,194.59,194.58,35.82]
[1761377461900,12.83930593,194.59,194.58,0.2]
[1761377462409,25.68551738,194.59,194.58,0.2]
[1761377462901,30.8245276,194.59,194.58,0.2]
[1761377464802,29.20169688,194.59,194.58,0.2]
[1761377464979,30.8245276,194.59,194.58,0.2]
[1761377466607,17.97831615,194.59,194.58,0.2]
[1761377471706,10.87647521,194.55,194.53,0.2]
[1761377471910,1.62283072,194.54,194.53,0.2]
[1761377472116,1.96283072,194.54,194.53,0.2]
[1761377472717,1.62283072,194.54,194.53,0.2]
[1761377473216,12.83930593,194.54,194.53,0.2]
[1761377473392,17.97963696,194.54,194.53,0.2]
[1761377474211,20.03857403,194.54,194.53,0.2]
[1761377474513,19.69857403,194.54,194.53,0.2]
[1761377475922,17.63963696,194.54,194.53,0.2]
[1761377476715,18.55558111,194.54,194.53,0.2]
[1761377479913,18.55558111,194.54,194.53,0.92]
[1761377481321,5.14033103,194.54,194.53,0.92]
[1761377481619,7.6791059,194.54,194.53,0.92]
[1761377482807,7.6791059,194.54,194.53,0.2]
[1761377483925,18.55558111,194.54,194.53,0.2]
[1761377486431,18.89558111,194.54,194.53,0.2]
[1761377486818,20.95451818,194.54,194.53,0.2]
[1761377490643,20.95451818,194.54,194.52,0.2]
[1761377490823,115.95525008,194.53,194.52,0.2]
[1761377491014,121.09584536,194.53,194.52,0.2]
[1761377491433,123.15499441,194.53,194.52,0.2]
[1761377492633,120.61621954,194.53,194.52,0.2]
[1761377492818,123.15499441,194.53,194.52,0.2]
[1761377495046,20.95499441,194.53,194.52,0.2]
[1761377496147,18.07621954,194.53,194.52,0.2]
[1761377496329,18.55584536,194.53,194.52,0.2]
[1761377496634,18.55584536,194.53,194.52,0.92]
[1761377497740,7.67937015,194.53,194.52,0.92]
[1761377502229,5.14059528,194.53,194.52,0.92]
[1761377503654,2.53877487,194.53,194.52,0.92]
[1761377505443,17.98963863,194.56,194.52,0.92]
[1761377505444,7.67930081,194.54,194.52,0.92]
[1761377505643,7.67930081,194.54,194.53,0.72]
[1761377506343,7.6788754,194.55,194.53,36.34]
[1761377506856,7.6788754,194.55,194.54,0.72]
[1761377507760,5.13980263,194.56,194.54,0.72]
[1761377507961,2.53877487,194.55,194.54,0.72]
[1761377510771,7.6785775,194.56,194.54,0.72]
[1761377512867,5.13980263,194.56,194.54,0.72]
[1761377513071,102.2,194.57,194.54,0.72]
[1761377513072,107.33953905,194.57,194.54,0.72]
[1761377514079,109.87831392,194.57,194.54,0.72]
[1761377514880,7.67831392,194.57,194.54,0.72]
[1761377518978,2.53877487,194.57,194.54,0.72]
[1761377519278,7.67808271,194.58,194.54,0.72]
[1761377519477,5.13930784,194.58,194.54,3.25877487]
[1761377519880,5.13930784,194.58,194.55,0.7]
[1761377522585,7.67752101,194.6,194.55,0.7]
[1761377523683,5.13874614,194.6,194.55,3.23877487]
[1761377523982,5.13874614,194.6,194.56,3.23877487]
[1761377524165,5.13874614,194.6,194.57,35.6]
[1761377524359,5.13874614,194.6,194.57,36.3]
[1761377524561,5.13874614,194.6,194.58,0.7]
[1761377525878,5.13829378,194.62,194.59,2.53877487]
[1761377526281,5.13829378,194.62,194.6,0.7]
[1761377526581,5.13829378,194.62,194.61,35.6]
[1761377526769,17.98257011,194.64,194.61,35.6]
[1761377527075,2.53877487,194.65,194.62,3.23877487]
[1761377527076,5.13747595,194.65,194.62,3.23877487]
[1761377527276,5.13747595,194.65,194.62,0.7]
[1761377527479,5.13747595,194.65,194.63,0.7]
[1761377527779,102.2,194.66,194.63,0.7]
[1761377529378,107.33719905,194.66,194.63,0.7]
[1761377529589,107.33719905,194.66,194.63,3.23877487]
[1761377530456,107.33719905,194.66,194.64,0.7]
[1761377530659,107.33719905,194.66,194.65,35.6]
[1761377531066,107.33719905,194.66,194.65,36.3]
[1761377531670,5.13719905,194.66,194.65,36.3]
[1761377533092,5.13689834,194.67,194.65,36.3]
[1761377533273,5.13689834,194.67,194.66,0.7]
[1761377535693,5.13663447,194.68,194.66,0.7]
[1761377535889,7.67540934,194.68,194.66,0.7]
[1761377536590,2.53877487,194.67,194.66,0.7]
[1761377537689,7.67567321,194.67,194.66,0.7]
[1761377537884,5.13689834,194.67,194.66,0.7]
[1761377538788,1.62223982,194.68,194.65,36.3]
[1761377539091,1.62223982,194.67,194.66,0.7]
[1761377539976,5.13716223,194.66,194.62,1.62223982]
[1761377540173,1.62223982,194.63,194.56,1.62223982]
[1761377540373,1.62223982,194.62,194.59,0.72]
[1761377541270,6.76070933,194.62,194.59,0.72]
[1761377541482,5.1375459,194.65,194.6,22.88]
[1761377541690,1.62223982,194.67,194.61,1.62223982]
[1761377541868,1.62223982,194.67,194.62,1.62223982]
[1761377542071,1.62223982,194.67,194.62,2.34223982]
[1761377542287,1.62223982,194.67,194.63,0.72]
[1761377542493,1.62223982,194.67,194.64,35.58]
[1761377542877,5.13716223,194.66,194.65,0.72]
[1761377543600,5.13693292,194.67,194.65,0.72]
[1761377546802,6.75917274,194.67,194.65,0.72]
[1761377547296,1.96223982,194.66,194.64,35.58]
[1761377547596,11.21647521,194.66,194.64,35.6]
[1761377547803,1.62223982,194.65,194.64,35.6]
[1761377548883,6.75966596,194.65,194.64,35.6]
[1761377551394,17.63614117,194.65,194.64,35.6]
[1761377551601,17.97614117,194.65,194.64,35.6]
[1761377551998,17.63614117,194.65,194.64,35.6]
[1761377564317,17.63614117,194.65,194.64,36.32]
[1761377564891,17.63614117,194.65,194.64,35.6]
[1761377565417,30.47970654,194.65,194.62,36.3]
[1761377565612,1.62223982,194.64,194.62,0.72]
[1761377565795,1.62223982,194.64,194.62,36.3]
[1761377566193,5.13795406,194.63,194.62,0.72]
[1761377566419,5.13795406,194.63,194.62,36.3]
[1761377569117,19.60507904,194.63,194.57,37.68448567]
[1761377569311,19.60507904,194.63,194.59,0.72]
[1761377569312,1.62223982,194.62,194.59,0.72]
[1761377569695,1.62223982,194.61,194.59,0.72]
[1761377571223,5.13874614,194.6,194.59,0.72]
[1761377572824,6.76045788,194.62,194.59,0.72]
[1761377573823,6.76045788,194.62,194.6,35.58]
[1761377573997,7.10072191,194.61,194.6,35.58]
[1761377574200,6.76072191,194.61,194.6,35.58]
[1761377574614,19.60692714,194.61,194.54,13.18488516]
[1761377574821,1.62223982,194.58,194.56,0.68]
[1761377576622,6.76176352,194.58,194.56,0.68]
[1761377576803,5.1395237,194.58,194.56,0.68]
[1761377577513,1.62223982,194.61,194.57,22.88]
[1761377577720,10.87647521,194.61,194.58,0.68]
[1761377578323,10.87647521,194.62,194.58,2.30223982]
[1761377578524,10.87647521,194.62,194.59,35.58]
[1761377578825,16.01488241,194.62,194.59,36.3]
[1761377579022,16.01488241,194.62,194.6,0.72]